bitfinex-derivatives/quotes_ETHF0:USTF0_20251021
["timestamp","ask_amount","ask_price","bid_price","bid_amount"]
[1761071570463,0.00250949,3989.9,3989.8,9.65194]
[1761071571764,0.00250949,3989.9,3989.8,9.65094]
[1761071571765,1.31490949,3989.9,3989.8,9.65094]
[1761071572068,3.14920949,3989.9,3989.8,9.65094]
[1761071573860,3.14920949,3989.9,3989.8,0.45094]
[1761071574062,3.76790399,3989.9,3989.8,9.64994]
[1761071574367,3.14920949,3989.9,3989.8,9.64994]
[1761071575272,2.20720949,3989.9,3989.8,9.64994]
[1761071575768,1.31490949,3989.9,3989.8,9.64994]
[1761071576559,0.00250949,3989.9,3989.8,9.64994]
[1761071577167,1.31490949,3989.9,3989.8,9.64994]
[1761071577366,0.00250949,3989.9,3989.8,9.64994]
[1761071577872,0.00250949,3989.9,3989.8,17.97580358]
[1761071578075,9.49e-06,3989.9,3989.8,17.97580358]
[1761071578768,9.49e-06,3989.9,3989.8,12.97580358]
[1761071581571,1.31240949,3989.9,3989.8,9.64794]
[1761071582275,1.31240949,3989.9,3989.8,0.45094]
[1761071582576,9.49e-06,3989.9,3989.8,9.64694]
[1761071582771,9.49e-06,3989.9,3989.8,16.04186607]
[1761071584576,9.49e-06,3989.9,3989.8,12.85474]
[1761071585474,9.49e-06,3989.9,3989.8,16.08602667]
[1761071585968,9.49e-06,3989.9,3989.8,21.08602667]
[1761071586771,9.49e-06,3989.9,3989.8,16.08602667]
[1761071590370,9.49e-06,3989.9,3989.8,21.08602667]
[1761071590785,1.3124,3991.1,3991.0,0.45081]
[1761071590978,0.5133,3991.5,3991.4,0.45077]
[1761071591280,2.02638471,3991.5,3991.4,9.64477]
[1761071591478,2.44648471,3991.5,3991.4,9.82789294]
[1761071591682,4.5202,3991.6,3991.5,0.45075]
[1761071591872,1.93599263,3991.6,3991.5,0.45075]
[1761071592074,0.00272059,3991.6,3991.5,3.65855]
[1761071592282,0.00272059,3991.6,3991.5,0.45075]
[1761071592584,2.20742059,3991.6,3991.5,0.45075]
[1761071593578,1.31512059,3991.6,3991.5,0.45075]
[1761071595376,3.14942059,3991.6,3991.5,0.45075]
[1761071595573,3.14942059,3991.6,3991.5,9.64275]
[1761071595887,1.3124,3991.4,3991.2,0.45079]
[1761071596078,3.1467,3991.4,3991.3,9.64178]
[1761071596784,3.1467,3991.4,3991.3,9.82547508]
[1761071597482,3.1467,3991.4,3991.3,0.45078]
[1761071597793,3.1467,3991.4,3990.7,1.12711]
[1761071597794,1.3124,3990.8,3990.7,0.45084]
[1761071597981,2.2047,3990.8,3990.7,7.06451151]
[1761071598177,3.1467,3990.8,3990.7,0.18467151]
[1761071598382,3.1467,3990.8,3990.7,7.19584]
[1761071598588,11.3545,3990.8,3990.7,6.745]
[1761071598787,11.3545,3990.8,3990.7,6.92751975]
[1761071598987,11.3545,3990.8,3990.7,7.37835975]
[1761071599191,1.3124,3990.8,3990.7,7.37835975]
[1761071599384,1.2976,3991.2,3991.1,0.4508]
[1761071599585,0.5578,3991.5,3991.4,0.45076]
[1761071600087,1.8554,3991.5,3991.4,0.45076]
[1761071600793,0.5578,3992.0,3991.5,0.45075]
[1761071601091,1.24392059,3991.6,3991.5,9.64075]
[1761071601294,0.00272059,3991.6,3991.5,12.90380746]
[1761071601785,5.9e-07,3991.6,3991.5,12.90380746]
[1761071605895,5.9e-07,3991.6,3991.5,17.90380746]
[1761071606690,5.9e-07,3991.6,3991.5,12.90380746]
[1761071606891,1.24120059,3991.6,3991.5,12.90380746]
[1761071608993,5.9e-07,3991.6,3991.5,12.90380746]
[1761071612894,2.93620059,3991.6,3991.5,3.71380746]
[1761071613095,2.93620059,3991.6,3991.5,12.89880746]
[1761071613596,5.9e-07,3991.6,3991.5,12.89780746]
[1761071615692,5.9e-07,3991.6,3991.5,13.89780746]
[1761071616793,5.9e-07,3991.6,3991.5,17.10560746]
[1761071618294,0.5578,3992.5,3992.4,0.45065]
[1761071618498,1.799,3992.5,3992.4,9.63365]
[1761071619406,1.799,3992.5,3991.8,2.2536]
[1761071619407,0.45074,3991.7,3991.0,1.7527]
[1761071619592,3.2078,3991.3,3991.1,9.182]
[1761071619793,0.61422339,3991.2,3991.1,9.182]
[1761071620103,5.61422339,3991.2,3991.1,9.182]
[1761071620602,0.61422339,3991.2,3991.1,10.41425209]
[1761071621904,5.61422339,3991.2,3991.1,9.18515209]
[1761071622303,5.61422339,3991.2,3991.1,7.87035209]
[1761071623003,5.61422339,3991.2,3991.1,9.09945209]
[1761071623897,0.61422339,3991.2,3991.1,9.09945209]
[1761071625700,5.61422339,3991.2,3991.1,9.09945209]
[1761071627194,3.2078,3991.3,3991.2,1.67989]
[1761071627511,3.82336904,3991.3,3991.2,1.2291]
[1761071632010,3.2078,3991.3,3991.2,2.66679]
[1761071632811,3.2078,3991.3,3991.2,2.216]
[1761071633514,3.2078,3991.3,3991.2,3.1965]
[1761071634311,3.65857,3991.3,3991.2,3.64729]
[1761071635513,3.65857,3991.3,3991.2,3.1965]
[1761071635914,3.65857,3991.3,3991.2,3.64729]
[1761071636105,3.65857,3991.3,3989.0,1.3858]
[1761071636106,3.2078,3990.4,3989.0,1.3858]
[1761071636302,3.2078,3989.1,3989.0,1.3858]
[1761071636609,3.2078,3989.1,3989.0,1.22552541]
[1761071636814,0.45103,3989.0,3988.8,0.5432]
[1761071637213,0.45412956,3989.0,3988.8,0.54500869]
[1761071637713,5.0,3988.9,3988.8,0.00180869]
[1761071638901,5.0,3988.9,3988.8,1.93080869]
[1761071639307,0.00309956,3989.0,3988.9,1.3858]
[1761071640512,5.00309956,3989.0,3988.9,1.3858]
[1761071640711,0.00309956,3989.0,3988.9,1.3858]
[1761071641917,2.21733432,3991.5,3988.9,1.3858]
[1761071641918,3.2078,3989.6,3989.5,3.80418]
[1761071642110,3.2078,3989.6,3989.5,12.5352]
[1761071642311,3.2078,3989.6,3989.5,10.5678]
[1761071642513,0.45101,3989.2,3989.1,1.3858]
[1761071642710,3.65881,3989.2,3989.1,10.5688]
[1761071642917,3.66144507,3989.2,3989.1,1.3858]
[1761071644413,0.45104,3989.0,3988.8,10.17906869]
[1761071644615,3.66146507,3989.2,3989.0,0.45104]
[1761071644817,0.45103,3989.1,3988.8,9.72800869]
[1761071645017,0.45103,3989.1,3988.9,1.3858]
[1761071645321,3.21043507,3989.2,3989.1,1.3858]
[1761071646919,3.21043507,3989.2,3989.1,4.40040209]
[1761071647613,3.21043507,3989.2,3989.1,2.3727]
[1761071648211,3.21043507,3989.2,3989.1,3.3532]
[1761071648813,3.21043507,3989.2,3989.1,4.40040209]
[1761071649424,3.21043507,3989.2,3989.1,4.85143209]
[1761071650725,0.88029147,3990.7,3990.6,1.3858]
[1761071651022,3.2078,3991.4,3991.3,1.3858]
[1761071651221,3.2078,3991.4,3991.3,10.5688]
[1761071651612,3.21068593,3991.4,3991.3,10.5688]
[1761071651808,3.21068593,3991.4,3991.3,10.67501172]
[1761071652923,0.00288593,3991.4,3991.3,10.67501172]
[1761071653621,3.2078,3991.8,3991.4,1.3858]
[1761071654018,3.2078,3991.8,3991.7,1.83654]
[1761071654220,3.2078,3991.8,3991.7,11.01854]
[1761071654625,3.20991642,3991.8,3991.7,11.02045223]
[1761071656320,0.00211642,3991.8,3991.7,11.02045223]
[1761071656717,0.00211642,3991.8,3991.7,12.98785223]
[1761071656916,1.16471642,3991.8,3991.7,1.38771223]
[1761071657123,4.37251642,3991.8,3991.7,8.65571223]
[1761071657624,3.79121642,3991.8,3991.7,10.62311223]
[1761071658121,4.37251642,3991.8,3991.7,9.64261223]
[1761071658325,4.95381642,3991.8,3991.7,7.26991223]
[1761071658830,3.79121642,3991.8,3991.7,0.00191223]
[1761071659129,8.79121642,3991.8,3991.7,6.85691223]
[1761071659327,0.5993,3991.7,3990.6,3.2078]
[1761071659623,0.45092,3990.1,3989.8,1.3534]
[1761071659814,0.5993,3989.8,3989.5,9.179]
[1761071660017,3.2078,3989.9,3989.5,9.179]
[1761071660018,0.5993,3989.7,3989.5,9.179]
[1761071660328,3.2078,3989.9,3989.8,1.3534]
[1761071660627,3.2078,3989.9,3989.8,1.35619237]
[1761071662025,3.7897,3989.9,3989.8,0.00279237]
[1761071662524,3.2078,3989.9,3989.8,1.38659237]
[1761071663631,3.2078,3990.3,3990.2,0.45091]
[1761071663934,3.2078,3990.3,3990.2,1.83471]
[1761071665326,3.2078,3990.3,3990.2,1.3838]
[1761071666519,8.81309578,3990.3,3988.4,1.3838]
[1761071666726,3.2078,3988.5,3988.4,1.3838]
[1761071667627,3.21047113,3988.5,3988.4,1.38578286]
[1761071668127,0.00267113,3988.5,3988.4,1.38578286]
[1761071668328,3.2078,3989.4,3989.3,1.9288]
[1761071668520,3.2078,3989.4,3989.3,11.1428]
[1761071669327,3.21019675,3989.4,3989.3,11.1428]
[1761071671126,0.00239675,3989.4,3989.3,11.1428]
[1761071673629,0.00239675,3989.4,3989.3,1.9288]
[1761071673829,0.00239675,3989.4,3989.3,4.926]
[1761071674830,0.58159675,3989.4,3989.3,4.926]
[1761071675620,0.00239675,3989.4,3989.3,6.3098]
[1761071679335,0.45339675,3989.4,3989.3,6.3098]
[1761071681837,0.45339675,3989.4,3989.3,8.2598]
[1761071682137,3.66119675,3989.4,3989.3,8.2598]
[1761071682338,3.78939675,3989.4,3989.3,8.2598]
[1761071684237,3.66119675,3989.4,3989.3,8.2598]
[1761071684440,3.66119675,3989.4,3989.3,8.71081]
[1761071684835,3.2078,3989.8,3989.3,6.876]
[1761071685030,3.2078,3989.8,3989.7,3.78477]
[1761071685937,3.20960316,3989.8,3989.7,3.78477]
[1761071686738,0.00180316,3989.8,3989.7,3.78477]
[1761071687548,3.2078,3990.2,3990.1,3.78472]
[1761071687852,3.2078,3990.2,3990.1,12.96772]
[1761071688549,3.21098117,3990.2,3990.1,12.96772]
[1761071689248,3.82202571,3990.2,3990.1,12.96772]
[1761071689445,4.40293571,3990.2,3990.1,12.5168]
[1761071689642,4.53293571,3990.2,3990.1,12.5168]
[1761071691856,4.27293571,3990.2,3990.1,12.5168]
[1761071692054,4.27293571,3990.2,3990.1,11.5369]
[1761071693052,3.82202571,3990.2,3990.1,12.84252]
[1761071698655,3.82202571,3990.2,3990.1,12.3916]
[1761071698960,3.82202571,3990.2,3990.1,12.84252]
[1761071702060,3.82202571,3990.2,3990.1,12.3916]
[1761071702358,9.27293571,3990.2,3990.1,1.3838]
[1761071702558,9.27293571,3990.2,3990.0,0.545]
[1761071702559,0.45092,3990.1,3990.0,0.545]
[1761071702758,0.45092,3990.1,3989.9,1.309]
[1761071702759,0.45093,3990.0,3989.9,1.309]
[1761071702959,1.06197454,3990.0,3989.9,1.309]
[1761071703165,0.45094,3989.9,3989.8,9.181]
[1761071703357,0.451,3989.4,3989.3,1.309]
[1761071703552,3.6588,3989.4,3989.2,9.181]
[1761071703759,0.61104454,3989.3,3988.8,0.545]
[1761071703958,3.65885,3989.0,3988.9,1.309]
[1761071704159,4.26989454,3989.0,3988.9,1.309]
[1761071704663,4.26989454,3989.0,3988.9,1.76006]
[1761071705258,3.81884454,3989.0,3988.9,1.76006]
[1761071705458,3.81884454,3989.0,3988.9,2.61396]
[1761071706066,3.81884454,3989.0,3988.9,3.46866]
[1761071706568,3.2078,3989.0,3988.9,3.46866]
[1761071707362,3.2078,3989.4,3989.3,3.46861]
[1761071707565,3.2078,3989.4,3989.3,12.64961]
[1761071708068,3.8186464,3989.4,3989.3,3.0176]
[1761071708864,3.2078,3989.4,3989.3,3.0176]
[1761071709167,3.2078,3989.4,3989.3,12.1986]
[1761071711162,3.2078,3990.1,3990.0,2.6825]
[1761071711469,3.2078,3990.1,3987.9,1.7932982]
[1761071711470,0.45116,3988.0,3987.9,1.7932982]
[1761071711670,0.45116,3988.0,3986.1,5.57540572]
[1761071711671,1.2219,3987.9,3987.2,0.12993253]
[1761071711963,8.7043,3988.0,3987.1,5.42266988]
[1761071711964,0.61026625,3987.8,3987.3,0.45123]
[1761071712165,1.83216625,3987.7,3987.1,11.0828]
[1761071712363,1.2219,3986.9,3986.0,9.8158]
[1761071712569,1.22373344,3986.9,3986.5,0.45132]
[1761071712871,0.00183344,3986.9,3986.7,0.4513]
[1761071713368,0.00183344,3986.9,3986.8,3.2078]
[1761071713568,0.00183344,3986.9,3986.8,4.5168]
[1761071713964,3.2078,3987.6,3987.0,0.5188]
[1761071714171,0.4965,3988.5,3987.7,1.309]
[1761071714463,4.4297,3988.8,3988.5,1.309]
[1761071714664,4.4297,3988.8,3988.6,10.631]
[1761071714863,1.2219,3988.7,3988.6,10.631]
[1761071715067,1.22391349,3988.7,3988.6,9.322]
[1761071716566,1.22391349,3988.7,3988.6,10.631]
[1761071717159,1.22391349,3988.7,3988.6,9.322]
[1761071719161,2.96721349,3988.7,3988.6,9.322]
[1761071720772,2.96721349,3988.7,3988.6,10.1953]
[1761071720977,0.00201349,3988.7,3988.6,12.89539]
[1761071721163,0.00201349,3988.7,3988.6,16.11659]
[1761071724370,0.00201349,3988.7,3988.6,17.89539]
[1761071725175,3.65425,3989.8,3989.7,0.8733]
[1761071725479,4.26704976,3989.8,3989.7,10.1623]
[1761071726176,4.26896532,3989.8,3989.7,0.00283433]
[1761071726478,4.26896532,3989.8,3989.7,9.28183433]
[1761071726479,9.26896532,3989.8,3989.7,9.28183433]
[1761071728079,9.26896532,3989.8,3989.7,0.00283433]
[1761071728381,9.26896532,3989.8,3989.7,3.57609433]
[1761071728382,0.61471532,3989.8,3989.7,3.57609433]
[1761071728683,0.61471532,3989.8,3989.7,6.78389433]
[1761071728879,0.00191556,3989.8,3989.7,6.78389433]
[1761071730882,0.00191556,3989.8,3989.7,3.57609433]
[1761071731384,0.61552986,3989.8,3989.7,3.57609433]
[1761071731578,3.81882986,3989.8,3989.7,0.87613433]
[1761071731979,4.26977986,3989.8,3989.7,0.00283433]
[1761071732176,4.26977986,3989.8,3989.7,9.25983433]
[1761071733684,4.26977986,3989.8,3989.7,10.13313433]
[1761071734384,4.26977986,3989.8,3989.7,9.25983433]
[1761071734988,9.26977986,3989.8,3989.7,0.00283433]
[1761071735176,0.61552986,3989.8,3989.7,3.12513433]
[1761071735379,0.00191556,3989.8,3989.7,3.57609433]
[1761071737390,0.00191556,3989.8,3989.7,12.82109433]
[1761071738290,0.00191556,3989.8,3989.7,17.82109433]
[1761071740286,0.45084,3990.8,3990.7,1.7788]
[1761071740591,1.93588526,3990.8,3990.7,11.0128]
[1761071740783,1.93588526,3990.8,3990.7,12.3563]
[1761071741188,2.90884526,3990.8,3990.7,12.3563]
[1761071741388,2.91144142,3990.8,3990.7,12.3563]
[1761071742086,4.27028142,3990.8,3990.7,12.3563]
[1761071742280,3.81944142,3990.8,3990.7,12.3563]
[1761071743494,4.27028142,3990.8,3990.7,12.3563]
[1761071744589,4.27028142,3990.8,3990.7,10.1073]
[1761071745695,4.27028142,3990.8,3990.7,10.55815]
[1761071745887,4.27028142,3990.8,3990.7,12.80715]
[1761071746288,0.61614142,3990.8,3990.7,12.80715]
[1761071748297,0.00259616,3990.8,3990.7,16.01495]
[1761071751494,0.45077,3991.5,3991.2,0.45079]
[1761071751797,2.05,3991.6,3991.5,2.8534]
[1761071751991,3.11296384,3991.6,3991.5,12.0534]
[1761071752192,3.96296384,3991.6,3991.5,9.2]
[1761071752596,3.9651862,3991.6,3991.5,9.2]
[1761071752897,3.9651862,3991.6,3991.5,12.0534]
[1761071753392,3.9651862,3991.6,3991.5,10.8692]
[1761071754198,3.35078,3991.3,3991.2,0.85]
[1761071754388,3.96299384,3991.3,3991.2,10.04]
[1761071754590,3.96299384,3991.3,3991.2,9.19]
[1761071755087,3.96299384,3991.3,3991.2,10.49079]
[1761071756094,3.96299384,3991.3,3991.2,1.30079]
[1761071756294,3.96306786,3991.3,3991.2,10.49079]
[1761071757000,3.96306786,3991.3,3991.2,11.67499]
[1761071757196,3.96306786,3991.3,3991.2,9.19]
[1761071757705,3.96306786,3991.3,3991.2,12.0434]
[1761071759800,2.0708,3990.4,3990.0,1.1842]
[1761071760098,3.35095,3989.8,3989.7,0.00283433]
[1761071760298,2.9,3989.1,3989.0,3.577]
[1761071760500,2.9,3988.6,3988.2,1.1842]
[1761071760794,2.05,3989.1,3988.4,1.6692]
[1761071761000,0.61205118,3989.0,3988.9,2.8534]
[1761071761190,0.61205118,3989.0,3988.9,12.0424]
[1761071761394,2.66509567,3989.0,3988.9,12.04495048]
[1761071761797,3.51509567,3989.0,3988.9,12.04495048]
[1761071762198,3.51509567,3989.0,3988.9,10.86075048]
[1761071762500,4.02079567,3989.0,3988.9,9.19155048]
[1761071762703,9.02079567,3989.0,3988.9,0.00255048]
[1761071763400,2.66509567,3989.0,3988.9,2.85595048]
[1761071763598,0.61509567,3989.0,3988.9,12.04395048]
[1761071764205,1.31994623,3989.8,3989.7,2.8534]
[1761071764206,0.88459192,3989.8,3989.7,2.8534]
[1761071764395,2.9,3990.1,3990.0,2.8534]
[1761071764595,2.05,3990.1,3990.0,2.8534]
[1761071765195,2.05317496,3990.1,3990.0,2.8534]
[1761071765493,2.9,3989.8,3989.7,9.188]
[1761071765694,6.1078,3989.8,3989.7,9.188]
[1761071765899,2.17754,3989.0,3988.9,0.00255048]
[1761071766304,3.2078,3989.3,3988.9,1.18675048]
[1761071766602,0.00317496,3990.1,3990.0,2.12633]
[1761071767500,0.00317496,3990.1,3990.0,7.12633]
[1761071768007,0.45079,3991.3,3990.9,1.1842]
[1761071768210,3.2078,3991.4,3991.1,1.1842]
[1761071768391,3.2078,3991.4,3991.3,1.1842]
[1761071769609,1.2208,3991.1,3991.0,1.1842]
[1761071769801,1.2208,3991.1,3990.9,0.45083]
[1761071770008,1.2208,3991.1,3991.0,1.1842]
[1761071770603,0.00193954,3991.4,3991.3,1.1842]
[1761071772201,1.2208,3991.1,3990.5,1.1842]
[1761071772410,1.2208,3991.1,3990.0,3.699]
[1761071772411,3.2078,3991.0,3990.7,1.1842]
[1761071772713,0.45082,3991.0,3990.8,1.1842]
[1761071772903,1.6716,3991.2,3990.9,1.1842]
[1761071773104,3.20973954,3991.4,3991.3,1.63498]
[1761071774306,3.20973954,3991.4,3991.0,9.207]
[1761071774307,0.00193954,3991.4,3991.0,9.207]
[1761071774607,1.2208,3991.1,3991.0,9.207]
[1761071775610,0.4508,3991.2,3991.0,10.3912]
[1761071775910,1.6716,3991.2,3991.1,1.1842]
[1761071776208,2.28504414,3991.2,3991.1,1.1842]
[1761071776605,1.83424414,3991.2,3991.1,1.1842]
[1761071776810,0.00193954,3991.4,3991.3,1.1842]
[1761071777109,0.61532501,3991.4,3991.3,1.1842]
[1761071777910,0.00193954,3991.4,3991.3,1.1842]
[1761071778704,1.22273954,3991.4,3991.2,1.62339]
[1761071778912,1.22273954,3991.4,3991.3,1.1726]
[1761071779305,2.74763954,3991.4,3991.3,1.9277]
[1761071779506,2.74763954,3991.4,3991.3,0.7551]
[1761071779811,2.74763954,3991.4,3991.3,1.9277]
[1761071780207,2.74763954,3991.4,3991.3,2.37848]
[1761071780610,0.00193954,3991.4,3991.3,3.13598]
[1761071782409,0.00193954,3991.4,3991.3,8.13598]
[1761071783705,0.45063,3992.6,3992.5,1.469]
[1761071783909,0.61402453,3992.6,3992.5,1.9103]
[1761071784207,5.53533,3992.7,3992.6,1.0961]
[1761071784409,3.04116,3992.4,3992.3,9.188]
[1761071784606,3.65680133,3992.4,3992.3,9.19091284]
[1761071785205,3.04301395,3992.4,3992.3,9.93351284]
[1761071785417,3.04301395,3992.4,3992.3,11.02961284]
[1761071785716,3.04301395,3992.4,3992.3,9.93351284]
[1761071786303,3.04301395,3992.4,3992.3,9.19091284]
[1761071786516,3.04301395,3992.4,3992.3,0.00291284]
[1761071787310,8.04301395,3992.4,3992.3,0.00291284]
[1761071788407,8.65608895,3992.4,3992.3,0.00291284]
[1761071788609,1.8769,3991.4,3991.3,13.1374]
[1761071788812,1.8769,3991.4,3991.3,15.41068]
[1761071789117,1.8769,3991.4,3991.3,12.20288]
[1761071789318,2.32767,3991.4,3991.3,11.7521]
[1761071789618,2.32767,3991.4,3991.3,11.7544578]
[1761071790115,1.8769,3991.4,3991.3,12.2052378]
[1761071790415,3.0413,3991.1,3991.0,1.8387]
[1761071790619,3.0413,3991.1,3991.0,11.7511]
[1761071790810,2.32769,3991.2,3991.1,2.5651]
[1761071791414,3.04129,3991.2,3991.1,2.5651]
[1761071791723,3.04129,3991.2,3991.1,1.47143167]
[1761071792523,3.04129,3991.2,3991.1,0.00243167]
[1761071794018,1.8769,3990.5,3990.4,5.7729]
[1761071794215,1.8769,3990.5,3990.4,14.9589]
[1761071794414,1.8769,3990.5,3990.4,15.40978]
[1761071794933,1.8769,3990.5,3990.4,15.41267476]
[1761071795611,1.8769,3990.5,3990.4,12.20487476]
[1761071796422,1.8769,3990.5,3990.4,11.75399476]
[1761071796619,2.5905,3990.5,3990.4,11.75399476]
[1761071796820,3.47547,3990.5,3990.4,10.65789476]
[1761071797021,4.09064857,3990.5,3990.4,10.65789476]
[1761071797217,3.65654857,3990.5,3990.4,11.75399476]
[1761071797419,0.61517857,3990.5,3990.4,12.20487476]
[1761071798127,4.3589,3991.1,3990.4,12.20487476]
[1761071798329,0.45078,3991.3,3991.2,2.5651]
[1761071798632,0.61545213,3991.3,3991.2,2.5651]
[1761071798825,0.61545213,3991.3,3991.2,1.91979]
[1761071799034,1.06622213,3991.4,3991.2,1.469]
[1761071799231,2.94313213,3991.3,3991.2,2.5651]
[1761071799425,3.65673213,3991.3,3991.2,2.5651]
[1761071799732,3.20595213,3991.3,3991.2,3.01589]
[1761071800029,3.65673213,3991.3,3991.2,2.5651]
[1761071800229,3.65673213,3991.3,3991.2,0.7426]
[1761071800624,3.65673213,3991.3,3991.2,2.5651]
[1761071801136,3.04128,3991.3,3991.2,2.5651]
[1761071801433,2.49238312,3991.3,3991.2,2.5651]
[1761071801634,0.7258,3990.5,3990.4,1.47189476]
[1761071801930,0.7258,3990.5,3990.4,11.75399476]
[1761071802128,1.8769,3990.7,3990.6,2.5651]
[1761071802333,2.49218764,3990.7,3990.6,3.01596]
[1761071803033,3.65663764,3990.7,3990.6,2.5651]
[1761071803231,2.03384531,3991.5,3991.4,1.469]
[1761071803431,3.20574798,3991.5,3991.4,2.5651]
[1761071803627,0.61524798,3991.5,3991.4,3.01587]
[1761071803933,2.49214798,3991.5,3991.4,3.01587]
[1761071804324,2.94290798,3991.5,3991.4,2.5651]
[1761071804524,2.49214798,3991.5,3991.4,3.01587]
[1761071805129,2.49214798,3991.5,3991.4,2.5651]
[1761071805328,3.65650798,3991.5,3991.4,1.469]
[1761071805533,4.09060798,3991.5,3991.4,0.7426]
[1761071805735,3.04127,3991.4,3991.3,9.186]
[1761071805928,3.65651798,3991.4,3991.3,9.186]
[1761071806935,3.65651798,3991.4,3991.3,11.7511]
[1761071807527,3.65651798,3991.4,3991.3,2.5651]
[1761071809231,3.65651798,3991.4,3991.3,1.469]
[1761071809741,2.5905,3991.1,3991.0,4.40121]
[1761071809934,3.20574798,3991.1,3991.0,4.40121]
[1761071810238,3.20574798,3991.1,3991.0,6.22371]
[1761071810439,0.61524798,3991.1,3991.0,6.66501]
[1761071810637,0.61524798,3991.1,3991.0,3.45721]
[1761071810833,2.56954798,3991.1,3991.0,3.01591]
[1761071811932,3.34294798,3991.1,3991.0,3.01591]
[1761071812332,0.61524798,3991.1,3991.0,3.52831]
[1761071812529,2.47397,3991.4,3991.3,1.6294]
[1761071812741,3.85710809,3991.4,3991.3,2.8792]
[1761071816243,4.7398534,3991.4,3991.3,2.8792]
[1761071816645,4.7398534,3991.4,3991.3,0.8261]
[1761071816846,4.7398534,3991.4,3990.9,10.4348]
[1761071816847,2.7966,3991.1,3991.0,3.33001]
[1761071817045,3.40633809,3991.1,3991.0,3.33001]
[1761071817942,3.85714809,3991.1,3991.0,3.33001]
[1761071818244,3.85714809,3991.1,3991.0,2.8792]
[1761071818443,3.85714809,3991.1,3991.0,1.6294]
[1761071818744,0.45097,3989.7,3989.5,0.5124]
[1761071818940,1.30632912,3989.6,3989.5,1.3385]
[1761071819241,1.30632912,3989.6,3989.5,2.5883]
[1761071819447,1.30632912,3989.6,3989.5,3.3916]
[1761071820036,1.30632912,3989.6,3989.5,1.7622]
[1761071820238,0.6125354,3989.6,3989.5,2.59455313]
[1761071820540,0.6125354,3989.6,3989.5,8.04554313]
[1761071820742,0.00180628,3989.6,3989.5,8.04554313]
[1761071820947,3.2078,3990.3,3990.2,2.8792]
[1761071821249,3.81801728,3990.3,3990.2,2.8792]
[1761071821950,6.53539552,3990.3,3990.2,1.25287482]
[1761071822243,4.61529552,3990.3,3990.2,2.88227482]
[1761071822546,3.82059552,3990.3,3990.2,2.88227482]
[1761071822846,0.61279552,3990.3,3990.2,2.88227482]
[1761071823049,0.61279552,3990.3,3990.2,7.88227482]
[1761071823241,0.61279552,3990.3,3990.2,17.06527482]
[1761071823750,0.61279552,3990.3,3990.2,12.06527482]
[1761071824146,0.61279552,3990.3,3990.2,17.06527482]
[1761071824451,3.2078,3991.2,3991.1,2.8792]
[1761071824646,3.81758115,3991.2,3991.1,2.8792]
[1761071825052,0.60978115,3991.2,3991.1,2.8792]
[1761071825351,0.61234054,3991.2,3991.1,3.33]
[1761071825650,1.1467,3992.2,3991.9,2.8792]
[1761071825651,3.65851,3992.0,3991.9,2.8792]
[1761071825845,4.45321,3992.0,3991.9,2.8792]
[1761071826040,4.45321,3992.0,3991.5,0.5124]
[1761071826041,1.24545,3991.6,3991.5,1.3385]
[1761071826246,4.45325,3991.6,3991.5,1.3385]
[1761071826550,4.45325,3991.6,3991.5,3.3916]
[1761071826750,6.37335,3991.6,3991.5,1.2498]
[1761071826947,6.37517448,3991.6,3991.5,1.2498]
[1761071827252,5.22847448,3991.6,3991.5,3.3916]
[1761071827545,4.00432448,3991.6,3991.5,3.3916]
[1761071827951,4.45507448,3991.6,3991.5,3.3916]
[1761071828548,5.22847448,3991.6,3991.5,3.3916]
[1761071828746,6.37517448,3991.6,3991.5,1.2498]
[1761071828952,6.37517448,3991.6,3991.5,2.0759]
[1761071829250,5.22847448,3991.6,3991.5,2.5883]
[1761071829856,0.7947,3990.8,3990.7,1.27695]
[1761071830040,0.7947,3990.8,3990.7,1.6294]
[1761071830247,4.0025,3991.0,3990.9,1.6294]
[1761071830446,4.0025,3991.0,3990.9,2.8792]
[1761071830842,4.0025,3991.0,3990.7,0.8261]
[1761071831056,5.22672,3991.0,3990.9,2.8792]
[1761071831351,4.7759,3991.0,3990.9,2.8792]
[1761071831653,3.2078,3991.0,3990.9,2.8792]
[1761071833049,4.0025,3991.0,3990.9,2.8792]
[1761071833250,3.2078,3991.0,3990.9,2.8792]
[1761071833953,3.2078,3991.0,3990.9,3.33003]
[1761071839056,3.2078,3991.0,3990.9,2.8792]
[1761071839359,0.8117,3989.6,3989.5,2.0807]
[1761071839661,0.8117,3989.6,3988.4,9.179]
[1761071839662,0.45105,3989.0,3987.6,1.79249042]
[1761071839855,4.457,3988.7,3987.8,3.2078]
[1761071840059,0.60791158,3988.6,3987.6,9.258]
[1761071840268,0.00246738,3988.6,3988.3,0.45112]
[1761071840459,1.25166738,3988.6,3988.2,9.258]
[1761071840652,1.68736738,3988.6,3988.3,9.258]
[1761071841159,1.68736738,3988.6,3988.3,10.791]
[1761071841558,1.68736738,3988.6,3988.3,9.258]
[1761071841859,1.68736738,3988.6,3987.6,0.0030856]
[1761071842049,1.6849,3987.4,3986.9,1.68540089]
[1761071842252,1.6849,3987.4,3986.4,0.6277]
[1761071842253,4.8927,3987.7,3987.1,1.533]
[1761071842452,4.8927,3987.2,3987.1,1.533]
[1761071842652,1.6849,3987.1,3986.8,4.57829]
[1761071842855,0.6343,3987.0,3986.8,4.127]
[1761071843053,1.6849,3986.9,3986.8,4.12897306]
[1761071843248,1.6849,3986.9,3985.7,1.533]
[1761071843249,6.12822,3986.9,3985.7,1.533]
[1761071843456,0.6763,3986.8,3985.9,1.533]
[1761071843659,3.2078,3986.0,3985.9,1.533]
[1761071844157,3.2078,3986.0,3985.2,0.6277]
[1761071844348,3.2078,3985.5,3985.2,1.53576792]
[1761071844666,3.21083307,3985.5,3985.2,1.53576792]
[1761071845256,3.21083307,3985.5,3985.3,1.533]
[1761071845657,0.45145,3985.4,3985.3,1.533]
[1761071845862,3.21083307,3985.5,3985.3,1.533]
[1761071846362,3.21083307,3985.5,3985.2,1.53576792]
[1761071846755,3.21083307,3985.5,3985.4,1.533]
[1761071847061,0.00303307,3985.5,3985.4,1.533]